bitfinex-derivatives/quotes_ETHF0:USTF0_20250205
["timestamp","ask_amount","ask_price","bid_price","bid_amount"]
[1738769247712,3.2078,2786.2,2786.1,0.43794674]
[1738769248712,3.92537,2786.2,2786.1,0.43775207]
[1738769249012,8.2078,2786.2,2785.4,0.00538435]
[1738769249209,3.2078,2785.5,2785.4,0.00538435]
[1738769250017,3.92555,2785.5,2785.4,0.00538435]
[1738769250619,3.2078,2785.5,2785.4,0.00538435]
[1738769251014,3.92555,2785.5,2785.4,0.00538435]
[1738769251213,3.2078,2785.5,2785.4,0.00538435]
[1738769251413,3.92555,2785.5,2785.4,0.00538435]
[1738769251614,3.2078,2785.5,2785.4,0.00538435]
[1738769252114,3.92555,2785.5,2785.4,0.00538435]
[1738769252419,0.7179,2785.0,2784.1,5.9238]
[1738769252618,3.2078,2784.7,2784.1,5.9238]
[1738769253317,3.2078,2784.7,2784.2,0.54757682]
[1738769253518,3.2078,2784.7,2784.3,0.54757682]
[1738769253818,3.21318435,2784.7,2784.4,0.54757682]
[1738769254127,3.21318435,2784.7,2784.5,0.54757682]
[1738769254415,0.00538435,2784.7,2784.6,0.54757682]
[1738769255020,3.2078,2785.4,2784.6,1.80423404]
[1738769255316,3.2078,2785.4,2784.9,3.2078]
[1738769255523,3.2078,2785.4,2785.0,0.54757682]
[1738769255721,3.2078,2785.4,2785.1,0.54757682]
[1738769256032,3.2078,2786.0,2785.2,6.53167682]
[1738769256218,0.00538435,2785.5,2785.3,0.54757682]
[1738769256411,0.00538435,2785.5,2785.4,3.75537682]
[1738769256616,3.0038,2786.7,2785.4,4.46407239]
[1738769256817,3.2078,2786.2,2785.5,1.80366689]
[1738769257018,3.2078,2786.2,2785.6,1.80366689]
[1738769257329,3.2078,2786.2,2785.4,3.2078]
[1738769257619,3.2078,2786.2,2785.5,1.25631204]
[1738769257920,0.00538435,2786.1,2785.6,1.25631204]
[1738769258230,0.00538435,2786.1,2785.5,0.00538435]
[1738769258526,0.00538435,2786.1,2785.6,1.25627348]
[1738769258716,0.00538435,2786.1,2785.5,0.00538435]
[1738769258912,0.00538435,2786.1,2785.6,1.25631693]
[1738769259122,3.2078,2785.9,2785.5,0.00538435]
[1738769259523,3.2078,2785.6,2785.5,0.00538435]
[1738769260222,0.00538435,2786.1,2785.5,8.93093435]
[1738769260424,6.70621478,2787.6,2786.0,3.2078]
[1738769260623,2.8674,2787.5,2786.5,3.2078]
[1738769260921,2.8674,2787.5,2786.6,0.43220645]
[1738769261124,2.8674,2787.5,2786.7,0.43220645]
[1738769261329,3.2078,2787.3,2786.8,0.43220645]
[1738769261518,3.2078,2787.3,2786.9,0.43220645]
[1738769261718,3.2078,2787.3,2787.0,0.43220645]
[1738769261928,3.2078,2787.3,2787.1,0.43220645]
[1738769262128,3.2078,2787.3,2786.5,3.2078]
[1738769262129,3.2078,2787.3,2787.2,0.43220645]
[1738769263126,8.2078,2787.3,2787.2,0.43220645]
[1738769264625,3.2078,2787.3,2787.2,0.43220645]
[1738769266529,0.71736,2787.0,2786.9,0.00538435]
[1738769266728,6.70621478,2787.0,2786.9,0.00538435]
[1738769267126,3.2078,2787.0,2786.9,0.00538435]
[1738769268831,5.19541478,2787.4,2786.9,0.00538435]
[1738769268832,3.2078,2787.3,2786.9,0.00538435]
[1738769270728,3.2078,2788.0,2787.0,3.2078]
[1738769270933,3.2078,2788.4,2787.6,3.2078]
[1738769271133,3.2078,2788.4,2787.7,2.8875]
[1738769271530,3.04400154,2788.5,2787.7,2.8875]
[1738769271834,3.04400154,2788.5,2787.8,3.0208]
[1738769272131,3.2078,2788.4,2787.8,3.0208]
[1738769272334,3.04400154,2788.2,2787.7,6.0953]
[1738769272728,3.2078,2788.4,2787.7,6.0953]
[1738769272930,3.2078,2788.4,2788.0,3.2078]
[1738769273331,2.9627,2788.8,2788.0,3.2078]
[1738769273524,3.0761,2789.1,2788.1,0.54942112]
[1738769273736,3.0761,2789.1,2788.2,0.54942112]
[1738769273930,3.0761,2789.1,2788.3,0.54942112]
[1738769274237,3.0761,2789.1,2788.4,0.00538435]
[1738769276929,3.2078,2788.7,2788.4,0.00538435]
[1738769277433,2.9542,2788.6,2788.4,0.00538435]
[1738769278032,3.67116,2788.6,2788.4,0.00538435]
[1738769278641,2.9542,2788.6,2788.4,0.00538435]
[1738769279335,0.71698,2788.5,2788.4,0.00538435]
[1738769279639,7.9542,2788.6,2787.4,3.2078]
[1738769279837,3.2078,2788.2,2787.4,3.2078]
[1738769280136,3.2078,2788.2,2787.5,0.54793669]
[1738769280440,3.2078,2788.2,2787.4,3.2078]
[1738769280739,0.00538435,2788.1,2787.6,0.00538435]
[1738769281640,0.00538435,2788.1,2787.7,3.2078]
[1738769283136,0.00538435,2788.1,2787.6,0.00538435]
[1738769283637,3.11108435,2788.1,2787.6,0.00538435]
[1738769284736,0.00538435,2788.1,2787.6,0.00538435]
[1738769286033,0.71712,2788.0,2787.6,0.00538435]
[1738769286334,0.00538435,2788.1,2787.6,0.00538435]
[1738769286335,0.72247435,2788.1,2787.6,0.00538435]
[1738769286532,0.00538435,2788.1,2787.6,0.00538435]
[1738769289233,0.72247435,2788.1,2787.6,0.00538435]
[1738769289535,0.00538435,2788.1,2787.6,0.00538435]
[1738769289741,0.71718,2787.7,2787.6,0.00538435]
[1738769290140,5.9376,2787.7,2786.7,3.2078]
[1738769290343,3.2078,2787.3,2786.7,3.2078]
[1738769291041,0.71711,2788.0,2787.0,3.2078]
[1738769291247,3.2078,2787.8,2787.1,3.0481]
[1738769291443,0.71722,2787.6,2786.7,3.21318435]
[1738769291742,3.2078,2787.8,2787.0,3.2078]
[1738769292245,0.00538435,2788.1,2787.0,3.2078]
[1738769292246,3.21318435,2788.1,2787.0,3.2078]
[1738769293140,0.71711,2788.0,2787.0,3.2078]
[1738769293544,3.21318435,2788.1,2787.0,3.2078]
[1738769293834,6.25178907,2787.8,2786.7,3.21318435]
[1738769294240,0.71722,2787.6,2786.7,3.21318435]
[1738769294542,6.25178907,2787.8,2786.7,3.21318435]
[1738769294742,3.2078,2787.5,2786.7,3.21318435]
[1738769295043,6.25717342,2788.1,2787.0,3.2078]
[1738769295245,0.71713,2788.0,2787.0,3.2078]
[1738769295435,0.71711,2788.0,2787.0,3.2078]
[1738769295635,6.25717342,2788.1,2787.0,3.2078]
[1738769296041,6.97426342,2788.1,2787.0,3.2078]
[1738769296246,0.71712,2788.0,2787.0,3.2078]
[1738769296541,0.71715,2787.9,2787.0,3.2078]
[1738769296750,3.21318435,2788.1,2787.4,3.2078]
[1738769296946,3.21318435,2788.1,2787.5,2.9103]
[1738769297145,0.00538435,2788.1,2787.7,3.2078]
[1738769300853,0.00538435,2788.1,2788.0,3.2078]
[1738769304651,0.00538435,2788.1,2788.0,8.76049826]
[1738769304853,0.00538435,2788.1,2788.0,8.2078]
[1738769305148,0.00538435,2788.1,2788.0,8.76050281]
[1738769305547,0.00538435,2788.1,2788.0,3.76050281]
[1738769306045,0.00538435,2788.1,2788.0,3.76047845]
[1738769306751,3.2078,2789.2,2788.0,8.76047845]
[1738769306941,0.7168,2789.2,2788.5,3.2078]
[1738769307145,0.71687,2789.0,2788.8,3.2078]
[1738769307550,3.2078,2789.5,2788.8,3.2078]
[1738769307945,0.00538435,2789.4,2788.9,0.00538435]
[1738769308359,0.00538435,2789.4,2789.1,3.2078]
[1738769308653,0.00538435,2789.4,2788.9,0.00538435]
[1738769314249,3.2078,2789.2,2788.9,0.00538435]
[1738769314647,6.361,2789.2,2788.9,0.00538435]
[1738769315956,3.2078,2789.2,2788.9,0.00538435]
[1738769316156,0.00538435,2789.4,2789.0,3.2078]
[1738769316352,0.00538435,2789.4,2789.1,5.985]
[1738769316854,3.2078,2790.4,2789.3,2.4270171]
[1738769317061,2.4270171,2790.7,2789.9,3.2078]
[1738769317255,5.6348171,2790.7,2789.9,3.2078]
[1738769317556,5.7727,2790.6,2789.5,3.2078]
[1738769318058,5.7727,2790.6,2789.8,3.2078]
[1738769318257,5.6348171,2790.4,2789.3,5.6348171]
[1738769318652,5.6348171,2790.4,2789.3,3.2078]
[1738769318653,3.2078,2790.4,2789.3,3.2078]
[1738769318859,3.2078,2790.4,2789.6,3.2078]
[1738769320853,3.0575,2790.8,2790.3,3.2078]
[1738769321053,2.8924,2791.1,2790.3,3.2078]
[1738769321562,3.0575,2791.5,2790.4,0.00538435]
[1738769321757,3.03881462,2791.3,2790.4,0.00538435]
[1738769322056,6.24661462,2791.0,2790.4,0.00538435]
[1738769322250,3.2078,2790.6,2790.4,0.00538435]
[1738769322450,5.8788,2790.5,2790.4,0.00538435]
[1738769324463,0.71651,2790.4,2789.2,3.2078]
[1738769324664,3.2078,2789.9,2789.2,3.2078]
[1738769324955,3.2078,2789.6,2788.8,3.2078]
[1738769325357,9.37521462,2790.4,2789.1,3.2078]
[1738769325563,0.00535188,2789.5,2789.2,2.8978]
[1738769326155,0.00535188,2789.5,2789.3,3.1048]
[1738769327963,0.00535188,2789.5,2789.4,3.2078]
[1738769329460,0.00535188,2789.5,2789.2,2.8978]
[1738769329655,0.00535188,2789.5,2789.1,3.2078]
[1738769332765,0.00535188,2789.5,2788.9,0.00537461]
[1738769332766,0.71676,2789.4,2788.9,0.00537461]
[1738769332966,0.71678,2789.3,2788.9,0.00537461]
[1738769333167,3.03881462,2789.2,2788.9,0.00537461]
[1738769333570,3.75561462,2789.2,2788.9,0.00537461]
[1738769333964,3.03881462,2789.2,2788.9,0.00537461]
[1738769334367,3.2078,2789.1,2788.9,0.00537461]
[1738769334566,0.71685,2789.0,2788.9,0.00537461]
[1738769334769,3.0664,2789.0,2788.9,0.00537461]
[1738769336569,3.0441665,2789.5,2788.9,0.00537461]
[1738769336772,3.2078,2789.1,2788.9,0.00537461]
[1738769336970,0.71685,2789.0,2788.9,0.00537461]
[1738769337267,3.92464,2789.1,2788.9,0.00537461]
[1738769337468,3.2078,2789.1,2788.9,0.00537461]
[1738769337674,0.71685,2789.0,2788.9,0.00537461]
[1738769337875,3.2078,2789.1,2788.9,0.00537461]
[1738769339074,3.2078,2789.4,2788.9,0.00537461]
[1738769339472,3.03881462,2789.2,2788.9,0.00537461]
[1738769340481,0.71685,2789.0,2788.9,0.00537461]
[1738769341171,3.2078,2789.1,2788.9,0.00537461]
[1738769341681,0.00535188,2789.5,2788.9,0.00537461]
[1738769341977,0.00535188,2789.5,2789.1,3.2078]
[1738769342176,0.00535188,2789.5,2789.4,3.2078]
[1738769342977,0.00535188,2789.5,2789.1,3.2078]
[1738769343480,0.00535188,2789.5,2788.9,5.97007461]
[1738769344079,3.0441665,2789.5,2788.9,5.97007461]
[1738769344374,3.03881462,2789.2,2788.9,0.00537461]
[1738769344777,5.94281462,2789.2,2788.9,0.00537461]
[1738769344980,0.00535188,2789.5,2788.9,0.00537461]
[1738769345377,0.00535188,2789.5,2788.9,2.93757461]
[1738769345577,0.00535188,2789.5,2789.0,3.104]
[1738769346889,3.2078,2789.3,2788.9,0.00537461]
[1738769347082,3.7609065,2789.5,2788.9,0.00537461]
[1738769347385,3.0441665,2789.5,2788.9,0.00537461]
[1738769347886,3.7608965,2789.5,2788.9,0.00537461]
[1738769348185,3.0441665,2789.5,2788.9,0.00537461]
[1738769349080,0.00535188,2789.5,2788.9,3.21317461]
[1738769349679,0.00535188,2789.5,2789.0,2.915]
[1738769350275,0.00535188,2789.5,2789.2,3.2078]
[1738769350583,0.00535188,2789.5,2789.3,3.1588]
[1738769351384,3.2078,2790.4,2789.3,8.1588]
[1738769351586,3.2078,2790.4,2789.5,3.2078]
[1738769351978,3.2078,2790.4,2789.6,2.9973]
[1738769352478,3.2078,2790.4,2789.7,3.0586]
[1738769353082,3.0717,2790.8,2790.2,3.2078]
[1738769353483,3.0717,2790.8,2789.9,3.2078]
[1738769354087,5.97041462,2791.1,2790.5,3.2078]
[1738769354291,6.24661462,2791.1,2790.2,3.2078]
[1738769354485,6.96293462,2791.1,2790.5,0.00537461]
[1738769354682,6.24661462,2791.1,2790.5,0.00537461]
[1738769354987,6.96292462,2791.1,2790.5,0.00537461]
[1738769355188,6.24661462,2791.1,2790.5,0.00537461]
[1738769356185,6.96293462,2791.1,2790.5,0.00537461]
[1738769356889,6.24661462,2791.1,2790.5,0.00537461]
[1738769357089,6.96293462,2791.1,2790.5,0.00537461]
[1738769357483,6.24661462,2791.1,2790.5,0.00537461]
[1738769358788,6.96293462,2791.1,2790.5,0.00537461]
[1738769358992,0.71634,2791.0,2790.5,0.00537461]
[1738769359188,6.24661462,2790.8,2789.5,3.2078]
[1738769359492,3.75543462,2789.9,2789.1,3.1317]
[1738769359694,3.03881462,2789.9,2789.1,3.1317]
[1738769359984,3.75543462,2789.9,2789.1,3.1317]
[1738769360190,6.19061462,2789.9,2789.1,3.1317]
[1738769360491,0.00537461,2789.8,2789.2,0.00537461]
[1738769361091,0.00537461,2789.8,2789.4,3.2078]
[1738769361493,0.00537461,2789.8,2789.7,3.2078]
[1738769362585,6.19061462,2790.8,2789.7,8.2078]
[1738769362785,6.19061462,2790.8,2789.7,3.2078]
[1738769362985,6.19061462,2790.8,2789.8,3.1252]
[1738769364092,3.2078,2791.3,2790.6,3.2078]
[1738769364489,3.2078,2791.3,2790.7,0.00537461]
[1738769364988,3.03881462,2791.1,2790.7,0.00537461]
[1738769365192,3.2078,2791.0,2790.7,0.00537461]
[1738769365390,2.9785,2791.4,2790.7,3.21317461]
[1738769365989,19.36758344,2792.0,2791.0,3.2078]
[1738769366193,16.32876882,2792.0,2791.7,3.2078]
[1738769366386,15.14379652,2792.0,2791.8,5.8428]
[1738769366787,15.14379652,2792.0,2791.7,3.2078]
[1738769367194,15.14379652,2792.0,2791.7,11.24661462]
[1738769367387,15.14379652,2792.0,2791.7,6.24661462]
[1738769368196,20.61770276,2793.1,2791.8,7.51075425]
[1738769368499,20.61770276,2793.1,2792.5,3.2078]
[1738769369396,3.2078,2793.1,2792.5,3.2078]
[1738769369804,6.24661462,2793.1,2792.5,3.2078]
[1738769369996,2.9816,2793.0,2792.5,3.2078]
[1738769370397,2.9816,2793.0,2792.2,0.00537461]
[1738769370598,3.03881462,2792.8,2792.2,0.00537461]
[1738769371098,2.9816,2793.0,2792.2,0.00537461]
[1738769371606,5.8666,2793.0,2792.2,0.00537461]
[1738769373501,3.03881462,2792.5,2792.2,0.00537461]
[1738769373708,2.8474,2792.4,2792.2,0.00537461]
[1738769375605,3.0668,2792.3,2791.1,6.3115]
[1738769375809,3.2078,2792.2,2791.3,3.2078]
[1738769376000,3.2078,2792.2,2791.7,3.2078]
[1738769376200,3.2078,2792.2,2791.4,3.2078]
[1738769376409,3.0668,2792.3,2791.4,3.2078]
[1738769376604,0.00537461,2792.1,2791.7,3.2078]
[1738769377108,0.00537461,2792.1,2792.0,3.2078]
[1738769379911,0.00537461,2792.1,2792.0,8.2078]
[1738769380404,0.71567,2793.6,2792.0,15.90893889]
[1738769380610,3.54066,2793.7,2792.7,3.2078]
[1738769380906,2.825,2793.7,2792.7,3.2078]
[1738769381212,3.2078,2794.7,2793.6,3.2078]
[1738769381508,3.22143,2794.4,2793.8,3.2078]
[1738769381709,0.01363,2794.4,2793.8,3.2078]
[1738769381905,0.01363,2794.4,2793.7,0.00537461]
[1738769382611,0.01363,2794.4,2793.9,3.2078]
[1738769383011,0.01363,2794.4,2794.0,4.72282191]
[1738769383214,0.01363,2794.4,2794.2,3.2078]
[1738769384501,0.01363,2794.4,2794.2,11.24661462]
[1738769384708,0.01363,2794.4,2794.2,6.24661462]
[1738769384903,0.01363,2794.4,2794.2,11.24661462]
[1738769385112,0.01363,2794.4,2794.3,4.55712879]
[1738769385316,3.1028,2795.5,2794.3,4.55712879]
[1738769385509,3.1028,2795.5,2795.1,3.2078]
[1738769385807,3.1028,2795.5,2794.8,3.2078]
[1738769386112,3.03881462,2795.4,2794.8,3.2078]
[1738769386315,6.24661462,2795.4,2794.8,3.2078]
[1738769388307,3.2078,2795.1,2794.2,3.2078]
[1738769388513,6.24661462,2795.4,2794.5,3.2078]
[1738769389219,6.24661462,2795.1,2794.2,3.2078]
[1738769390311,6.24661462,2794.8,2793.6,3.2078]
[1738769390614,3.1028,2795.5,2793.5,3.2078]
[1738769390615,3.2078,2794.1,2793.5,3.2078]
[1738769391516,3.03881462,2794.5,2793.5,3.2078]
[1738769391714,6.24661462,2794.5,2793.8,3.2078]
[1738769393211,6.24661462,2794.2,2793.8,3.2078]
[1738769393412,3.2078,2793.9,2793.2,3.2078]
[1738769393914,6.24661462,2794.2,2793.5,3.2078]
[1738769394110,3.03881462,2794.5,2793.7,3.21317461]
[1738769394810,5.8508,2794.6,2793.7,3.21317461]
[1738769395015,5.8508,2794.6,2793.8,3.2078]
[1738769396017,3.03881462,2794.5,2793.8,3.2078]
[1738769396310,3.03881462,2794.5,2794.1,3.2078]
[1738769396512,5.8508,2794.6,2794.4,3.2078]
[1738769396720,2.9281,2794.6,2794.4,3.2078]
[1738769397412,2.9281,2794.6,2794.1,3.2078]
[1738769398317,3.03881462,2795.1,2794.4,3.2078]
[1738769398706,2.9742,2795.2,2794.4,3.2078]
[1738769399309,2.9742,2795.2,2794.7,3.2078]
[1738769399513,2.9742,2795.2,2794.4,3.2078]
[1738769400314,3.2078,2794.5,2793.8,6.1078]
[1738769400614,3.0037,2794.4,2793.8,3.2078]
[1738769401215,5.8384,2795.4,2794.1,3.2078]
[1738769401216,0.71531,2795.0,2794.1,3.2078]
[1738769401513,3.03881462,2795.1,2794.1,3.2078]
[1738769401812,3.03881462,2795.1,2793.8,2.8708]
[1738769401813,3.03881462,2795.1,2794.4,3.2078]
[1738769402017,6.2115,2795.3,2794.4,3.2078]
[1738769402216,3.0037,2795.3,2794.5,3.03881462]
[1738769402414,22.489,2798.3,2795.0,3.2078]
[1738769402415,3.75386462,2796.0,2795.0,3.2078]
[1738769402613,3.0081,2796.5,2795.7,3.2078]
[1738769402816,3.0081,2796.5,2795.4,3.03881462]
[1738769402817,3.0081,2796.5,2796.2,3.2078]
[1738769403013,1.4336,2797.1,2796.2,3.2078]
[1738769403215,6.2549,2797.6,2796.6,3.2078]
[1738769403216,3.0081,2797.5,2796.6,3.2078]
[1738769403414,3.0081,2797.5,2796.9,3.2078]
[1738769403922,3.0081,2797.5,2796.9,3.21316461]
[1738769404316,3.2078,2798.0,2797.2,3.2078]
[1738769405117,3.2078,2798.0,2796.9,0.00536461]
[1738769405118,1.4336,2798.3,2797.5,3.2078]
[1738769405516,4.5658,2798.7,2798.1,3.2078]
[1738769405722,4.5658,2798.7,2797.9,0.03418805]
[1738769406020,3.2078,2798.3,2797.9,0.03418805]
[1738769406322,3.2078,2798.6,2797.9,0.03418805]
[1738769406514,3.2078,2798.6,2798.1,3.2078]
[1738769406714,4.642,2799.4,2798.4,3.2078]
[1738769406916,4.642,2799.4,2798.8,3.2078]
[1738769407423,3.2078,2799.9,2799.2,3.2078]
[1738769407621,3.2078,2799.9,2799.5,0.03418805]
[1738769407821,3.2078,2799.9,2799.5,3.24198805]
[1738769408217,1.3593,2800.4,2799.8,3.2078]
[1738769408423,1.3774,2800.6,2800.1,3.2078]
[1738769408617,3.2078,2800.8,2800.1,3.2078]
[1738769408918,3.2078,2800.8,2800.3,0.03418805]
[1738769409318,3.2078,2801.3,2800.6,3.2078]
[1738769409516,3.2078,2800.9,2800.3,0.03418805]
[1738769409718,1.4559,2801.6,2800.3,0.03418805]
[1738769409719,3.2078,2800.8,2800.6,0.03418805]
[1738769410521,3.2078,2801.2,2800.6,0.03418805]
[1738769410716,3.2078,2801.2,2800.9,0.03418805]
[1738769410921,1.4559,2801.6,2801.0,3.2078]
[1738769411218,3.2078,2801.7,2801.0,7.948463]
[1738769411422,3.2078,2801.3,2801.0,4.740663]
[1738769411616,3.2078,2801.3,2800.9,0.03418805]
[1738769411617,3.46842582,2801.2,2800.9,0.03418805]
[1738769411818,3.2078,2801.0,2799.6,3.2078]
[1738769412115,3.2078,2800.1,2799.5,3.2078]
[1738769412320,3.2078,2799.7,2799.1,3.2078]
[1738769412723,3.2078,2799.4,2798.5,3.2078]
[1738769412920,3.2078,2799.6,2798.5,3.2078]
[1738769413325,0.00529841,2799.2,2798.7,0.00535475]
[1738769413827,3.2078,2799.1,2798.7,0.00535475]
[1738769414217,3.2078,2798.8,2798.7,0.00535475]
[1738769414423,3.2078,2798.8,2797.7,3.2078]
[1738769414917,3.2078,2797.9,2797.2,3.2078]
[1738769415120,3.2078,2798.6,2797.5,3.2078]
[1738769415726,3.2078,2798.6,2797.8,3.2078]
[1738769415920,3.2078,2798.6,2797.8,0.00535475]
[1738769416128,0.00535475,2798.3,2797.8,3.21315475]
[1738769416321,0.00535475,2798.3,2797.8,0.00535475]
[1738769416522,3.2078,2798.2,2797.8,0.00535475]
[1738769416932,0.00535475,2798.3,2797.8,0.00535475]
[1738769416933,3.2078,2797.9,2797.8,0.00535475]
[1738769417429,3.2078,2797.9,2796.9,3.2078]
[1738769417635,3.2078,2797.6,2796.3,0.3576]
[1738769417838,3.2078,2797.6,2796.9,3.2078]
[1738769418125,3.2078,2797.6,2796.6,3.2078]
[1738769418327,3.2078,2796.7,2795.7,3.2078]
[1738769418525,3.2078,2796.2,2795.7,3.2078]
[1738769418928,3.46842582,2796.8,2795.7,3.2078]
[1738769419228,3.21316442,2796.2,2795.7,0.00536442]
[1738769419422,3.2078,2795.8,2794.6,3.2078]
[1738769419626,3.2078,2795.5,2794.6,3.2078]
[1738769420332,6.67622582,2795.2,2794.6,3.2078]
[1738769420525,3.46842582,2794.8,2793.5,3.2078]
[1738769420725,3.2078,2794.0,2793.5,3.2078]
[1738769421232,3.2078,2794.0,2793.5,3.21316442]
[1738769421529,0.00536442,2794.0,2793.6,4.67244816]
[1738769421731,0.00536442,2794.0,2793.5,3.21316442]
[1738769421732,3.21316442,2794.0,2793.5,3.21316442]
[1738769422132,0.00536442,2794.0,2793.5,3.21316442]
[1738769422431,3.2078,2793.6,2793.5,0.00536442]
[1738769423726,0.00536442,2794.0,2793.5,0.00536442]
[1738769424734,3.2078,2793.8,2793.5,0.00536442]
[1738769425527,0.00536442,2794.0,2793.5,0.00536442]
[1738769427430,3.2078,2793.8,2793.5,0.00536442]
[1738769428535,4.8828,2793.8,2793.5,0.00536442]
[1738769428733,3.2078,2793.8,2793.5,0.00536442]
[1738769430440,0.7157,2793.5,2792.2,3.2078]
[1738769430732,0.00536442,2794.0,2791.5,3.5772]
[1738769430733,3.2078,2792.8,2791.5,3.5772]
[1738769430935,3.2078,2792.8,2791.1,1.675]
[1738769430936,3.2078,2792.1,2790.9,3.2078]
[1738769431128,3.2078,2792.1,2791.2,3.2078]
[1738769431532,3.2078,2792.5,2791.7,3.2078]
[1738769431734,0.00536442,2791.9,2791.7,3.2078]
[1738769431939,0.00536442,2791.9,2791.8,4.60413654]
[1738769432441,0.00536442,2791.9,2791.8,9.60413654]
[1738769432734,0.00536442,2791.9,2791.8,45.40413654]
[1738769433041,0.00536442,2791.9,2791.7,3.2078]
[1738769433535,0.00536442,2791.9,2791.4,0.00536442]
[1738769434638,0.00536442,2791.9,2791.2,3.2078]
[1738769434840,0.00536442,2791.9,2789.9,3.2078]
[1738769434841,3.2078,2791.3,2789.9,3.2078]
[1738769435239,3.2078,2791.0,2790.0,4.67546568]
[1738769435543,3.2078,2791.0,2789.9,3.2078]
[1738769435941,3.2078,2791.0,2790.0,4.73046568]
[1738769436243,3.2078,2791.0,2790.2,0.00366176]
[1738769437436,3.2078,2790.7,2790.2,0.00366176]
[1738769438047,3.2078,2790.3,2790.2,0.00366176]
[1738769438637,3.2078,2790.6,2790.2,0.00366176]
[1738769440547,3.2078,2791.0,2790.3,44.0078]
[1738769440741,3.2078,2790.7,2790.3,40.8]
[1738769440942,3.2078,2790.4,2790.2,0.00366176]
[1738769441848,3.2078,2791.0,2790.2,3.21146176]
[1738769442037,3.2078,2791.0,2790.5,3.2078]
[1738769442238,6.63095582,2791.8,2790.9,3.2078]
[1738769442239,4.441,2791.5,2790.9,3.2078]
[1738769442435,3.2078,2791.5,2791.0,3.2078]
[1738769442646,3.2078,2791.5,2790.5,3.2078]
[1738769442839,3.2078,2791.5,2790.6,40.8]
[1738769443041,3.2078,2790.8,2790.3,4.57065954]
[1738769443245,3.2078,2790.8,2790.2,3.21146176]
[1738769443445,3.2078,2790.8,2790.2,0.00366176]
[1738769443641,3.2078,2790.5,2790.2,0.00366176]
[1738769445944,0.71649,2790.4,2790.2,0.00366176]
[1738769446138,8.2078,2790.5,2788.8,3.2078]
[1738769446348,3.2078,2789.3,2788.8,3.2078]
[1738769446546,3.2078,2790.2,2788.8,3.2078]
[1738769446746,3.2078,2790.1,2788.8,3.2078]
[1738769447342,0.00537413,2789.7,2788.8,3.2078]
[1738769448249,0.00537413,2789.7,2789.1,3.2078]
[1738769449044,3.2078,2789.5,2788.6,3.2078]
[1738769449246,3.2078,2789.2,2788.3,3.2078]
[1738769449443,3.2078,2789.2,2788.0,16.535]
[1738769449648,3.92461,2789.2,2787.9,0.3592]
[1738769449845,3.2078,2788.9,2787.9,0.3592]
[1738769450142,3.2078,2788.9,2787.9,3.567]
[1738769450349,2.9559,2789.5,2788.2,3.2078]
[1738769450847,3.2078,2789.6,2789.0,3.2078]
[1738769452246,0.00537413,2789.7,2789.0,3.2078]
[1738769453143,3.2078,2789.5,2788.7,3.2078]
[1738769455450,0.71687,2789.0,2787.9,3.2078]
[1738769455651,3.2078,2788.9,2787.9,3.2078]
[1738769455953,3.2078,2788.9,2788.0,3.2078]
[1738769456151,0.71693,2788.7,2788.0,3.2078]
[1738769456351,3.2078,2788.9,2788.0,3.2078]
[1738769456648,3.46842582,2788.8,2788.0,3.2078]
[1738769456957,0.71692,2788.7,2788.0,3.2078]
[1738769457153,3.46842582,2788.8,2788.0,3.2078]
[1738769457352,0.71695,2788.6,2788.0,3.2078]
[1738769457548,4.66742582,2788.8,2788.0,3.2078]
[1738769458052,3.2078,2788.2,2787.6,3.2078]
[1738769458348,3.2078,2788.2,2787.1,0.3592]
[1738769458553,6.67622582,2788.0,2786.9,3.2078]
[1738769458848,3.2078,2787.6,2786.9,3.2078]
[1738769459053,6.67622582,2787.6,2786.7,3.2078]
[1738769459245,3.2078,2787.3,2786.3,3.7552431]
[1738769459553,4.3804,2787.9,2786.6,3.2078]
[1738769460442,0.71717,2787.8,2786.6,3.2078]
[1738769460752,3.2078,2787.5,2786.6,3.2078]
[1738769461050,3.2078,2786.9,2786.1,1.1976]
[1738769461249,3.2078,2786.6,2786.0,3.76529013]
[1738769461653,3.21317413,2786.6,2786.0,3.76529013]
[1738769461849,0.00537413,2786.6,2786.2,3.2078]
[1738769462156,0.00537413,2786.6,2786.0,6.97309013]
[1738769462346,0.00537413,2786.6,2786.3,3.2078]
[1738769463055,0.00537413,2786.6,2786.0,3.76529013]
[1738769463250,0.00537413,2786.6,2786.2,3.2078]
[1738769463553,0.00537413,2786.6,2786.0,3.76529013]
[1738769463947,0.00537413,2786.6,2786.0,6.97309013]
[1738769464554,0.00537413,2786.6,2786.3,3.2078]
[1738769465055,0.00537413,2786.6,2786.4,4.71112719]
[1738769465251,3.2078,2787.7,2786.4,4.71112719]
[1738769465451,3.2078,2788.2,2787.5,3.2078]
[1738769466146,3.46842582,2788.4,2787.5,3.2078]
[1738769466453,3.2078,2789.6,2788.3,3.2078]
[1738769466646,3.46842582,2790.0,2788.8,3.2078]
[1738769466647,3.2078,2789.9,2788.8,3.2078]
[1738769466851,3.2078,2789.9,2789.2,3.2078]
[1738769467048,3.2078,2789.9,2788.2,40.8]
[1738769467351,0.8048,2790.5,2788.2,4.76836493]
[1738769467352,3.2078,2789.5,2788.2,4.76836493]
[1738769467549,6.67622582,2789.2,2788.8,0.00537413]
[1738769467748,3.2078,2788.9,2788.2,3.2078]
[1738769467946,3.2078,2789.3,2788.1,3.2078]
[1738769468254,3.2078,2789.3,2787.5,1.677]
[1738769468255,3.2078,2789.3,2788.5,3.2078]
[1738769468452,1.6444,2789.5,2788.5,3.2078]
[1738769468752,3.2078,2789.4,2788.5,3.2078]
[1738769468956,3.2078,2789.4,2788.2,3.2078]
[1738769469449,3.2078,2789.4,2788.5,3.2078]
[1738769469645,1.6444,2789.5,2788.5,3.2078]
[1738769470048,1.6444,2789.5,2788.8,3.2078]
[1738769470457,1.6444,2789.5,2788.5,3.2078]
[1738769470652,3.2078,2789.4,2788.5,3.2078]
[1738769470857,3.2078,2789.1,2788.5,3.2078]
[1738769471555,3.2078,2788.8,2788.2,3.2078]
[1738769471761,3.2078,2788.5,2787.5,3.2078]
[1738769472356,0.00537413,2788.3,2787.5,3.2078]